[Event "3. kolo JP družstev 2019/2020"]
[Site "Jesenik, Czech Republic"]
[Date "2019.11.09"]
[Round "1.8"]
[White "Frkan, Pavel RET_B"]
[Black "Morongova, Gabriela JES_E"]
[Result "1-0"]
[TimeControl "3600+10"]
[WhiteElo "1497"]
[BlackElo "1234"]

1. Nf3 {[%clk 01:00:11]} {[%emt 00:00:09]} Nc6 {[%clk 01:00:07]} {[%emt
00:00:13]} 2. c4 {[%emt 00:00:18]} e5 {[%emt 00:00:30]} 3. Nc3 {[%clk
00:58:48]} {[%emt 00:00:22]} Bb4 {[%clk 01:00:12]} {[%emt 00:00:28]} 4. Nd5
{[%clk 00:58:17]} {[%emt 00:00:40]} Nf6 {[%clk 00:59:23]} {[%emt 00:00:59]} 5.
Nxb4 {[%clk 00:55:19]} {[%emt 00:02:56]} Nxb4 {[%clk 00:59:24]} {[%emt
00:00:21]} 6. Nxe5 {[%clk 00:54:49]} {[%emt 00:00:41]} O-O {[%clk 00:58:03]}
{[%emt 00:01:31]} 7. a3 {[%clk 00:53:01]} {[%emt 00:01:58]} d6 {[%clk
00:56:22]} {[%emt 00:01:51]} 8. Nf3 {[%clk 00:52:03]} {[%emt 00:01:07]} Nc6
{[%clk 00:55:31]} {[%emt 00:01:01]} 9. e3 {[%clk 00:49:28]} {[%emt 00:02:46]}
Ne5 {[%clk 00:53:28]} {[%emt 00:02:12]} 10. d4 {[%clk 00:49:03]} {[%emt
00:00:36]} Nxf3+ {[%clk 00:51:34]} {[%emt 00:02:03]} 11. Qxf3 {[%clk 00:48:51]}
{[%emt 00:00:23]} Bg4 {[%clk 00:49:58]} {[%emt 00:01:45]} 12. Qxb7 {[%clk
00:47:30]} {[%emt 00:01:32]} c6 {[%clk 00:48:15]} {[%emt 00:01:53]} 13. h3
{[%clk 00:43:31]} {[%emt 00:04:09]} Ne4 {[%clk 00:45:09]} {[%emt 00:03:17]} 14.
hxg4 {[%clk 00:42:03]} {[%emt 00:01:37]} Qa5+ {[%clk 00:44:15]} {[%emt
00:01:03]} 15. b4 {[%clk 00:40:26]} {[%emt 00:01:47]} Qa4 {[%clk 00:43:24]}
{[%emt 00:01:02]} 16. Bd3 {[%clk 00:32:26]} {[%emt 00:08:10]} Nc3 {[%clk
00:41:44]} {[%emt 00:01:50]} 17. Bxh7+ {[%clk 00:31:52]} {[%emt 00:00:43]} Kh8
{[%clk 00:41:15]} {[%emt 00:00:39]} 18. Bc2+ {[%clk 00:31:57]} {[%emt
00:00:05]} Kg8 {[%clk 00:41:06]} {[%emt 00:00:20]} 19. Bxa4 {[%clk 00:32:02]}
{[%emt 00:00:04]} Nxa4 {[%clk 00:40:40]} {[%emt 00:00:36]} 20. Qe7 {[%clk
00:30:22]} {[%emt 00:01:50]} d5 {[%clk 00:39:38]} {[%emt 00:01:12]} 21. Qh4
{[%clk 00:30:19]} {[%emt 00:00:13]} f6 {[%clk 00:39:19]} {[%emt 00:00:28]} 22.
cxd5 {[%clk 00:29:46]} {[%emt 00:00:45]} cxd5 {[%clk 00:39:02]} {[%emt
00:00:27]} 23. Qh7+ {[%clk 00:29:38]} {[%emt 00:00:17]} Kf7 {[%clk 00:38:56]}
{[%emt 00:00:17]} 24. Qh5+ {[%clk 00:29:32]} {[%emt 00:00:16]} Ke7 {[%clk
00:38:33]} {[%emt 00:00:33]} 25. Qxd5 {[%clk 00:29:32]} {[%emt 00:00:11]} Nb6
{[%clk 00:37:32]} {[%emt 00:01:11]} 26. Qb7+ {[%clk 00:28:46]} {[%emt
00:00:55]} Ke6 {[%clk 00:37:06]} {[%emt 00:00:37]} 27. f4 {[%clk 00:28:42]}
{[%emt 00:00:14]} f5 {[%clk 00:36:23]} {[%emt 00:00:52]} 28. Qxg7 {[%clk
00:28:03]} {[%emt 00:00:48]} Nc4 {[%clk 00:35:21]} {[%emt 00:01:14]} 29. Rh6+
{[%clk 00:24:57]} {[%emt 00:03:16]} Kd5 {[%clk 00:35:03]} {[%emt 00:00:28]} 30.
Qb7# {[%clk 00:24:13]} {[%emt 00:00:25]} Rg8 {[%emt 00:00:56]} 1-0

[Event "3. kolo JP družstev 2019/2020"]
[Site "Jesenik, Czech Republic"]
[Date "2019.11.09"]
[Round "1.9"]
[White "Kotrcova, Alena JES_E"]
[Black "Turon, Emil RET_B"]
[Result "1-0"]
[TimeControl "3600+10"]
[WhiteElo "1000"]
[BlackElo "1500"]

1. e4 {[%clk 01:00:14]} {[%emt 00:00:04]} e5 {[%clk 01:00:18]} {[%emt
00:00:04]} 2. Nf3 {[%clk 01:00:05]} {[%emt 00:00:18]} Nc6 {[%clk 01:00:25]}
{[%emt 00:00:04]} 3. Nc3 {[%clk 00:59:33]} {[%emt 00:00:41]} Nf6 {[%clk
01:00:05]} {[%emt 00:00:31]} 4. Bb5 {[%clk 00:58:10]} {[%emt 00:01:31]} Ne7
{[%clk 00:58:56]} {[%emt 00:01:20]} 5. Nxe5 {[%clk 00:57:09]} {[%emt 00:01:10]}
c6 {[%clk 00:58:35]} {[%emt 00:00:33]} 6. Bc4 {[%clk 00:55:35]} {[%emt
00:01:42]} d5 {[%clk 00:58:22]} {[%emt 00:00:24]} 7. Bb3 {[%clk 00:53:16]}
{[%emt 00:02:29]} Be6 {[%clk 00:57:15]} {[%emt 00:01:17]} 8. Qf3 {[%clk
00:49:52]} {[%emt 00:03:33]} Qc7 {[%clk 00:53:40]} {[%emt 00:03:46]} 9. d4
{[%clk 00:49:00]} {[%emt 00:01:02]} h6 {[%clk 00:51:38]} {[%emt 00:02:12]} 10.
O-O {[%clk 00:48:11]} {[%emt 00:00:59]} c5 {[%clk 00:48:02]} {[%emt 00:03:47]}
11. Bf4 {[%clk 00:47:20]} {[%emt 00:01:01]} Qd8 {[%clk 00:37:12]} {[%emt
00:10:59]} 12. dxc5 {[%clk 00:44:06]} {[%emt 00:03:24]} Nc6 {[%clk 00:30:46]}
{[%emt 00:06:37]} 13. Rad1 {[%clk 00:42:56]} {[%emt 00:01:16]} d4 {[%clk
00:24:34]} {[%emt 00:06:26]} 14. Bxe6 {[%clk 00:41:24]} {[%emt 00:01:41]} fxe6
{[%clk 00:21:20]} {[%emt 00:03:25]} 15. Ng6 {[%clk 00:35:30]} {[%emt 00:06:03]}
Rg8 {[%clk 00:19:43]} {[%emt 00:01:47]} 16. e5 {[%clk 00:35:11]} {[%emt
00:00:29]} Nd5 {[%clk 00:15:47]} {[%emt 00:04:07]} 17. Ne4 {[%clk 00:31:55]}
{[%emt 00:03:26]} Qa5 {[%clk 00:11:54]} {[%emt 00:04:02]} 18. Nd6+ {[%clk
00:30:10]} {[%emt 00:01:53]} Kd7 {[%clk 00:11:27]} {[%emt 00:00:40]} 19. Nxb7
{[%clk 00:27:21]} {[%emt 00:02:58]} Qb4 {[%clk 00:11:18]} {[%emt 00:00:20]} 20.
Qb3 {[%clk 00:25:09]} {[%emt 00:02:22]} Rb8 {[%clk 00:07:27]} {[%emt 00:04:01]}
21. Qxb4 {[%clk 00:23:00]} {[%emt 00:02:19]} Ndxb4 {[%clk 00:07:17]} {[%emt
00:00:20]} 22. Nd6 {[%clk 00:22:18]} {[%emt 00:00:52]} Nxa2 {[%clk 00:06:19]}
{[%emt 00:01:08]} 23. b3 {[%clk 00:22:00]} {[%emt 00:00:27]} Nab4 {[%clk
00:05:45]} {[%emt 00:00:45]} 24. c4 {[%clk 00:20:55]} {[%emt 00:01:15]} dxc3
{[%clk 00:05:11]} {[%emt 00:00:44]} 25. Ne4+ {[%clk 00:19:46]} {[%emt
00:01:18]} Nd5 {[%clk 00:05:06]} {[%emt 00:00:15]} 26. Nxc3 {[%clk 00:19:37]}
{[%emt 00:00:19]} Bxc5 {[%clk 00:04:12]} {[%emt 00:01:04]} 27. Nxd5 {[%clk
00:18:47]} {[%emt 00:01:00]} Rgd8 {[%emt 00:02:44]} 28. Nf6+ {[%clk 00:18:32]}
{[%emt 00:00:08]} Kc7 {[%clk 00:01:54]} {[%emt 00:00:12]} 29. Rxd8 {[%clk
00:18:09]} {[%emt 00:00:32]} Rxd8 {[%clk 00:02:02]} {[%emt 00:00:02]} 30. Ne4
{[%clk 00:17:35]} {[%emt 00:00:45]} Bb6 {[%clk 00:01:47]} {[%emt 00:00:25]} 31.
Be3 {[%clk 00:17:16]} {[%emt 00:00:28]} Bd4 {[%clk 00:00:41]} {[%emt 00:01:16]}
32. Rd1 {[%clk 00:16:28]} {[%emt 00:00:58]} 1-0

[Event "3. kolo JP družstev 2019/2020"]
[Site "Jesenik, Czech Republic"]
[Date "2019.11.09"]
[Round "1.10"]
[White "Sulek, Stefan RET_B"]
[Black "Tschulikova, Sara JES_E"]
[Result "0-1"]
[TimeControl "3600+10"]
[WhiteElo "1000"]
[BlackElo "1163"]

1. e4 {[%clk 01:00:15]} {[%emt 00:00:04]} e5 {[%clk 01:00:13]} {[%emt
00:00:09]} 2. Nf3 {[%clk 01:00:15]} {[%emt 00:00:09]} Nc6 {[%clk 01:00:12]}
{[%emt 00:00:11]} 3. g3 {[%clk 01:00:12]} {[%emt 00:00:13]} Nf6 {[%clk
01:00:07]} {[%emt 00:00:15]} 4. Nc3 {[%clk 00:59:53]} {[%emt 00:00:29]} Bc5
{[%clk 00:59:59]} {[%emt 00:00:18]} 5. d4 {[%clk 00:58:23]} {[%emt 00:01:40]}
exd4 {[%clk 00:58:32]} {[%emt 00:01:37]} 6. Ne2 {[%clk 00:57:47]} {[%emt
00:00:47]} d6 {[%clk 00:57:36]} {[%emt 00:01:06]} 7. Bg2 {[%clk 00:57:35]}
{[%emt 00:00:21]} O-O {[%clk 00:56:21]} {[%emt 00:01:24]} 8. O-O {[%clk
00:57:41]} {[%emt 00:00:06]} Bg4 {[%clk 00:55:39]} {[%emt 00:00:50]} 9. Bg5
{[%clk 00:57:02]} {[%emt 00:00:50]} Re8 {[%clk 00:55:05]} {[%emt 00:00:43]} 10.
Nexd4 {[%clk 00:56:13]} {[%emt 00:01:00]} Bxd4 {[%clk 00:53:12]} {[%emt
00:02:03]} 11. c3 {[%clk 00:54:30]} {[%emt 00:01:53]} Bb6 {[%clk 00:52:01]}
{[%emt 00:01:20]} 12. Qc2 {[%clk 00:52:51]} {[%emt 00:01:49]} Ne5 {[%clk
00:47:21]} {[%emt 00:04:51]} 13. Nxe5 {[%clk 00:52:26]} {[%emt 00:00:35]} dxe5
{[%clk 00:47:15]} {[%emt 00:00:16]} 14. Rad1 {[%clk 00:52:18]} {[%emt
00:00:17]} Qe7 {[%clk 00:46:43]} {[%emt 00:00:43]} 15. Rd2 {[%clk 00:51:54]}
{[%emt 00:00:34]} h6 {[%clk 00:45:51]} {[%emt 00:01:02]} 16. Bxf6 {[%clk
00:51:47]} {[%emt 00:00:17]} Qxf6 {[%clk 00:45:37]} {[%emt 00:00:24]} 17. h3
{[%clk 00:50:53]} {[%emt 00:01:03]} Be6 {[%clk 00:45:22]} {[%emt 00:00:25]} 18.
b3 {[%clk 00:49:45]} {[%emt 00:01:18]} Rad8 {[%clk 00:44:46]} {[%emt 00:00:47]}
19. a4 {[%clk 00:49:38]} {[%emt 00:00:18]} a6 {[%clk 00:44:06]} {[%emt
00:00:49]} 20. b4 {[%clk 00:44:00]} {[%emt 00:05:48]} Bc4 {[%clk 00:41:43]}
{[%emt 00:02:34]} 21. Rfd1 {[%clk 00:39:54]} {[%emt 00:03:15]} c6 {[%clk
00:38:51]} {[%emt 00:04:02]} 22. Rd7 {[%clk 00:39:11]} {[%emt 00:00:53]} Rxd7
{[%clk 00:37:04]} {[%emt 00:01:56]} 23. Rxd7 {[%clk 00:39:18]} {[%emt
00:00:04]} Rb8 {[%clk 00:37:03]} {[%emt 00:00:10]} 24. Bf1 {[%clk 00:38:53]}
{[%emt 00:00:35]} Be6 {[%clk 00:35:52]} {[%emt 00:01:22]} 25. Rd6 {[%clk
00:38:36]} {[%emt 00:00:27]} Rd8 {[%clk 00:33:32]} {[%emt 00:02:29]} 26. Rxd8+
{[%clk 00:35:50]} {[%emt 00:02:57]} Qxd8 {[%clk 00:33:03]} {[%emt 00:00:38]} 27.
Kg2 {[%clk 00:35:48]} {[%emt 00:00:12]} Qf6 {[%clk 00:31:32]} {[%emt 00:01:42]}
28. f3 {[%clk 00:34:45]} {[%emt 00:01:13]} Qg5 {[%clk 00:28:32]} {[%emt
00:03:10]} 29. h4 {[%clk 00:33:57]} {[%emt 00:00:57]} Qe3 {[%clk 00:27:29]}
{[%emt 00:01:14]} 30. c4 {[%clk 00:33:38]} {[%emt 00:00:30]} Qg1# {[%clk
00:27:03]} {[%emt 00:00:35]} 0-1

[Event "3. kolo JP družstev 2019/2020"]
[Site "Jesenik, Czech Republic"]
[Date "2019.11.09"]
[Round "1.12"]
[White "Macik, Milan SKO"]
[Black "Basler, Jan RET_C"]
[Result "1/2-1/2"]
[TimeControl "3600+10"]
[WhiteElo "1570"]
[BlackElo "1277"]

1. d4 {[%clk 01:00:12]} {[%emt 00:00:08]} d5 {[%clk 01:00:16]} {[%emt
00:00:04]} 2. e3 {[%clk 01:00:10]} {[%emt 00:00:12]} Nf6 {[%clk 00:59:50]}
{[%emt 00:00:37]} 3. c4 {[%clk 01:00:15]} {[%emt 00:00:05]} e6 {[%clk
00:58:03]} {[%emt 00:01:57]} 4. Nc3 {[%clk 01:00:19]} {[%emt 00:00:06]} Bb4
{[%clk 00:58:01]} {[%emt 00:00:11]} 5. Nf3 {[%clk 00:59:51]} {[%emt 00:00:38]}
Nc6 {[%clk 00:56:56]} {[%emt 00:01:15]} 6. a3 {[%clk 00:56:33]} {[%emt
00:03:28]} Bxc3+ {[%clk 00:56:23]} {[%emt 00:00:43]} 7. bxc3 {[%clk 00:56:32]}
{[%emt 00:00:09]} O-O {[%clk 00:55:55]} {[%emt 00:00:39]} 8. Bd3 {[%clk
00:56:10]} {[%emt 00:00:33]} Re8 {[%clk 00:53:49]} {[%emt 00:02:16]} 9. Ne5
{[%clk 00:54:00]} {[%emt 00:02:21]} dxc4 {[%clk 00:50:49]} {[%emt 00:03:09]} 10.
Nxc6 {[%clk 00:51:01]} {[%emt 00:03:08]} Qd5 {[%clk 00:44:24]} {[%emt
00:06:34]} 11. Qf3 {[%clk 00:42:55]} {[%emt 00:08:17]} Qxf3 {[%clk 00:43:34]}
{[%emt 00:01:01]} 12. gxf3 {[%clk 00:42:58]} {[%emt 00:00:06]} cxd3 {[%clk
00:43:33]} {[%emt 00:00:12]} 13. Ne5 {[%clk 00:42:45]} {[%emt 00:00:23]} Nd5
{[%clk 00:41:24]} {[%emt 00:02:18]} 14. Bd2 {[%clk 00:40:57]} {[%emt 00:02:00]}
f6 {[%clk 00:39:25]} {[%emt 00:02:09]} 15. Nxd3 {[%clk 00:41:00]} {[%emt
00:00:06]} Bd7 {[%clk 00:39:19]} {[%emt 00:00:16]} 16. f4 {[%clk 00:32:48]}
{[%emt 00:08:22]} Bb5 {[%clk 00:37:35]} {[%emt 00:01:53]} 17. Nb4 {[%clk
00:32:07]} {[%emt 00:00:52]} c6 {[%clk 00:36:41]} {[%emt 00:01:04]} 18. f3
{[%clk 00:30:11]} {[%emt 00:02:07]} a5 {[%clk 00:36:12]} {[%emt 00:00:38]} 19.
Nxd5 {[%clk 00:29:03]} {[%emt 00:01:18]} exd5 {[%clk 00:35:08]} {[%emt
00:01:14]} 20. Kf2 {[%clk 00:28:52]} {[%emt 00:00:21]} Re7 {[%clk 00:34:28]}
{[%emt 00:00:51]} 21. h4 {[%clk 00:28:12]} {[%emt 00:00:49]} Rae8 {[%clk
00:34:17]} {[%emt 00:00:21]} 22. Rag1 {[%clk 00:26:42]} {[%emt 00:01:17]} Kf7
{[%emt 00:02:09]} 1/2-1/2

[Event "3. kolo JP družstev 2019/2020"]
[Site "Jesenik, Czech Republic"]
[Date "2019.11.09"]
[Round "1.13"]
[White "Skypala, Erik RET_C"]
[Black "Valak, Josef SKO"]
[Result "0-1"]
[TimeControl "3600+10"]
[WhiteElo "1238"]
[BlackElo "1696"]

1. d4 {[%clk 01:00:17]} {[%emt 00:00:03]} d5 {[%emt 00:00:05]} 2. c4 {[%emt
00:00:09]} c6 {[%clk 00:59:55]} {[%emt 00:00:11]} 3. Nc3 {[%clk 01:00:10]}
{[%emt 00:00:18]} e6 {[%clk 00:59:58]} {[%emt 00:00:07]} 4. a4 {[%clk
00:59:31]} {[%emt 00:00:49]} Be7 {[%emt 00:01:03]} 5. Nf3 {[%emt 00:00:23]} Nd7
{[%emt 00:00:31]} 6. e3 {[%emt 00:00:24]} Ngf6 {[%clk 00:57:43]} {[%emt
00:00:04]} 7. b3 {[%clk 00:59:14]} {[%emt 00:00:27]} O-O {[%clk 00:57:02]}
{[%emt 00:00:50]} 8. Bd3 {[%clk 00:57:58]} {[%emt 00:01:27]} b6 {[%clk
00:55:16]} {[%emt 00:01:55]} 9. Ba3 {[%clk 00:57:10]} {[%emt 00:00:59]} Bxa3
{[%clk 00:54:37]} {[%emt 00:00:49]} 10. Rxa3 {[%clk 00:57:13]} {[%emt
00:00:07]} Qe7 {[%clk 00:53:59]} {[%emt 00:00:47]} 11. Ra1 {[%clk 00:56:53]}
{[%emt 00:00:31]} Qb4 {[%clk 00:53:13]} {[%emt 00:00:56]} 12. Qc2 {[%clk
00:56:38]} {[%emt 00:00:24]} h6 {[%clk 00:52:30]} {[%emt 00:00:53]} 13. O-O
{[%clk 00:56:20]} {[%emt 00:00:29]} a5 {[%clk 00:51:36]} {[%emt 00:01:02]} 14.
Ne5 {[%clk 00:55:56]} {[%emt 00:00:35]} Nxe5 {[%clk 00:50:47]} {[%emt
00:00:58]} 15. dxe5 {[%clk 00:55:42]} {[%emt 00:00:24]} Nd7 {[%clk 00:50:53]}
{[%emt 00:00:04]} 16. f4 {[%clk 00:55:05]} {[%emt 00:00:47]} Qc5 {[%clk
00:47:55]} {[%emt 00:03:08]} 17. Rae1 {[%clk 00:54:37]} {[%emt 00:00:39]} Nb8
{[%clk 00:47:10]} {[%emt 00:00:55]} 18. Rf3 {[%clk 00:49:15]} {[%emt 00:05:31]}
Na6 {[%clk 00:46:55]} {[%emt 00:00:26]} 19. Rh3 {[%clk 00:47:58]} {[%emt
00:01:27]} Nb4 {[%clk 00:45:48]} {[%emt 00:01:17]} 20. Qb1 {[%clk 00:47:44]}
{[%emt 00:00:24]} Nxd3 {[%clk 00:45:49]} {[%emt 00:00:09]} 21. Qxd3 {[%clk
00:47:45]} {[%emt 00:00:08]} Ba6 {[%clk 00:44:19]} {[%emt 00:01:41]} 22. Qc2
{[%clk 00:46:29]} {[%emt 00:01:25]} Rad8 {[%clk 00:42:55]} {[%emt 00:01:34]} 23.
Rf1 {[%clk 00:45:53]} {[%emt 00:00:46]} f5 {[%clk 00:41:41]} {[%emt 00:01:23]}
24. Rd1 {[%clk 00:45:13]} {[%emt 00:00:51]} dxc4 {[%clk 00:41:01]} {[%emt
00:00:50]} 25. bxc4 {[%clk 00:44:51]} {[%emt 00:00:33]} Bxc4 {[%emt 00:02:00]}
26. Ne2 {[%emt 00:01:05]} Rxd1+ {[%clk 00:37:00]} {[%emt 00:01:05]} 27. Qxd1
{[%clk 00:44:50]} {[%emt 00:00:12]} Bxe2 {[%clk 00:36:05]} {[%emt 00:01:03]} 28.
Qxe2 {[%clk 00:44:54]} {[%emt 00:00:08]} Qc1+ {[%clk 00:35:30]} {[%emt
00:00:44]} 29. Kf2 {[%clk 00:44:20]} {[%emt 00:00:44]} Rd8 {[%clk 00:34:53]}
{[%emt 00:00:47]} 30. Kg3 {[%clk 00:39:26]} {[%emt 00:05:04]} Rd2 {[%clk
00:34:32]} {[%emt 00:00:31]} 31. Qh5 {[%clk 00:38:13]} {[%emt 00:01:24]} Qe1+
{[%clk 00:33:59]} {[%emt 00:00:41]} 0-1

[Event "3. kolo JP družstev 2019/2020"]
[Site "Jesenik, Czech Republic"]
[Date "2019.11.09"]
[Round "1.14"]
[White "Hlasny, Karel SKO"]
[Black "Robotka, Tobias RET_C"]
[Result "1-0"]
[TimeControl "3600+10"]
[WhiteElo "1000"]
[BlackElo "1100"]

1. d4 {[%emt 00:00:06]} d5 {[%emt 00:00:06]} 2. c4 {[%clk 01:00:05]} {[%emt
00:00:03]} dxc4 {[%clk 01:00:09]} {[%emt 00:00:08]} 3. e3 {[%clk 01:00:12]}
{[%emt 00:00:07]} Nf6 {[%clk 01:00:11]} {[%emt 00:00:08]} 4. Bxc4 {[%clk
01:00:08]} {[%emt 00:00:13]} Bf5 {[%clk 00:59:58]} {[%emt 00:00:22]} 5. Nf3
{[%clk 01:00:00]} {[%emt 00:00:20]} e6 {[%clk 01:00:00]} {[%emt 00:00:07]} 6.
O-O {[%clk 00:59:50]} {[%emt 00:00:20]} Bb4 {[%clk 00:59:30]} {[%emt 00:00:41]}
7. a3 {[%clk 00:59:45]} {[%emt 00:00:15]} Be7 {[%clk 00:58:59]} {[%emt
00:00:41]} 8. Nc3 {[%clk 00:59:44]} {[%emt 00:00:11]} Nc6 {[%clk 00:59:06]}
{[%emt 00:00:02]} 9. Re1 {[%clk 00:59:25]} {[%emt 00:00:29]} Bg4 {[%emt
00:00:18]} 10. h3 {[%emt 00:00:14]} Bxf3 {[%clk 00:58:38]} {[%emt 00:00:05]} 11.
Qxf3 {[%clk 00:59:24]} {[%emt 00:00:13]} e5 {[%emt 00:00:29]} 12. Bb5 {[%emt
00:00:41]} exd4 {[%emt 00:00:13]} 13. Bxc6+ {[%emt 00:00:12]} bxc6 {[%clk
00:57:08]} {[%emt 00:00:04]} 14. Qxc6+ {[%clk 00:59:30]} {[%emt 00:00:05]} Nd7
{[%clk 00:57:13]} {[%emt 00:00:03]} 15. exd4 {[%clk 00:59:13]} {[%emt
00:00:28]} O-O {[%clk 00:57:20]} {[%emt 00:00:03]} 16. Bf4 {[%clk 00:58:41]}
{[%emt 00:00:42]} Bd6 {[%clk 00:57:06]} {[%emt 00:00:24]} 17. Bxd6 {[%clk
00:58:37]} {[%emt 00:00:14]} cxd6 {[%clk 00:57:08]} {[%emt 00:00:07]} 18. Qxd6
{[%clk 00:58:38]} {[%emt 00:00:10]} Qc8 {[%clk 00:56:08]} {[%emt 00:01:09]} 19.
Nd5 {[%clk 00:57:53]} {[%emt 00:00:56]} Re8 {[%clk 00:53:59]} {[%emt 00:02:20]}
20. Ne7+ {[%clk 00:57:48]} {[%emt 00:00:14]} Rxe7 {[%clk 00:53:48]} {[%emt
00:00:21]} 21. Rxe7 {[%clk 00:57:45]} {[%emt 00:00:13]} Nf8 {[%clk 00:53:49]}
{[%emt 00:00:09]} 22. Qf4 {[%clk 00:57:05]} {[%emt 00:00:48]} f6 {[%clk
00:53:35]} {[%emt 00:00:26]} 23. d5 {[%clk 00:56:31]} {[%emt 00:00:45]} Ng6
{[%clk 00:53:29]} {[%emt 00:00:15]} 24. Rc1 {[%clk 00:55:19]} {[%emt 00:01:23]}
Qxc1+ {[%clk 00:53:01]} {[%emt 00:00:34]} 25. Qxc1 {[%emt 00:00:14]} Nxe7
{[%emt 00:00:06]} 26. d6 {[%clk 00:54:55]} {[%emt 00:00:02]} Nf5 {[%clk
00:53:02]} {[%emt 00:00:25]} 27. d7 {[%clk 00:54:54]} {[%emt 00:00:11]} Rd8
{[%clk 00:53:10]} {[%emt 00:00:02]} 28. Qc8 {[%clk 00:54:55]} {[%emt 00:00:09]}
Rxc8 {[%clk 00:51:53]} {[%emt 00:01:27]} 29. dxc8=Q+ {[%clk 00:54:58]} {[%emt
00:00:06]} 1-0